bitfinex-derivatives/quotes_BNBF0:USTF0_20250521
["timestamp","ask_amount","ask_price","bid_price","bid_amount"]
[1747868987895,0.97114773,674.46,674.08,0.29670068]
[1747868989496,1.10911611,674.57,674.08,0.29670068]
[1747868990401,0.97114773,674.56,674.08,0.29670068]
[1747868992501,1.10911611,674.63,674.08,0.29670068]
[1747868993501,0.97114773,674.62,674.08,0.29670068]
[1747868994802,1.10911611,674.72,674.08,0.29670068]
[1747868997105,0.97114773,674.71,674.08,0.29670068]
[1747868998902,2.08026384,674.7,674.08,0.29670068]
[1747869000306,0.97114773,674.69,674.08,0.29670068]
[1747869002107,1.10911611,674.77,674.08,0.29670068]
[1747869003306,0.97114773,674.76,674.08,0.29670068]
[1747869004406,1.10911611,674.72,674.08,0.29670068]
[1747869005812,0.97114773,674.71,674.08,0.29670068]
[1747869008313,1.10911611,674.99,674.08,0.29670068]
[1747869009715,0.97114773,674.98,674.08,0.29670068]
[1747869011018,1.10911611,675.02,674.08,0.29670068]
[1747869012217,0.97114773,675.01,674.08,0.29670068]
[1747869014116,1.10911611,675.05,674.08,0.29670068]
[1747869015615,0.97114773,675.04,674.08,0.29670068]
[1747869017822,1.10911611,675.06,674.08,0.29670068]
[1747869019024,0.97114773,675.05,674.08,0.29670068]
[1747869022218,0.97114773,675.07,674.08,0.29670068]
[1747869024924,0.97114773,675.1,674.08,0.29670068]
[1747869026426,1.10911611,675.09,674.08,0.29670068]
[1747869027625,0.97114773,675.08,674.08,0.29670068]
[1747869030528,0.97114773,675.1,674.08,0.29670068]
[1747869033233,0.97114773,675.18,674.08,0.29670068]
[1747869036739,0.97114773,675.19,674.08,0.29670068]
[1747869038540,1.10911611,675.09,674.08,0.29670068]
[1747869039638,0.97114773,675.08,674.08,0.29670068]
[1747869041641,2.08026384,675.08,674.08,0.29670068]
[1747869043141,0.97114773,675.07,674.08,0.29670068]
[1747869044837,2.08026384,675.07,674.08,0.29670068]
[1747869045643,0.97114773,675.06,674.08,0.29670068]
[1747869051045,0.97114773,675.24,674.08,0.29670068]
[1747869053043,2.08026384,675.23,674.08,0.29670068]
[1747869054947,0.97114773,675.22,674.08,0.29670068]
[1747869056446,2.08026384,675.21,674.08,0.29670068]
[1747869057546,0.97114773,675.2,674.08,0.29670068]
[1747869058847,1.10911611,675.17,674.08,0.29670068]
[1747869060242,0.97114773,675.16,674.08,0.29670068]
[1747869062546,1.10911611,675.06,674.08,0.29670068]
[1747869064549,0.97114773,675.05,674.08,0.29670068]
[1747869066242,1.10911611,675.0,674.08,0.29670068]
[1747869069350,1.10911611,675.02,674.22,0.50764269]
[1747869069651,1.10911611,675.02,674.23,0.29663467]
[1747869075061,1.10911611,675.02,674.23,0.80427736]
[1747869077463,1.10911611,675.03,674.23,0.29663467]
[1747869079865,1.10911611,675.04,674.23,0.29663467]
[1747869082468,1.10911611,675.05,674.23,0.29663467]
[1747869083970,2.08026384,675.05,674.23,0.29663467]
[1747869085372,0.97114773,675.2,674.23,0.29663467]
[1747869086670,0.97114773,675.19,674.23,0.29663467]
[1747869087771,0.97114773,675.18,674.23,0.29663467]
[1747869089066,0.97114773,675.17,674.23,0.29663467]
[1747869090975,0.97114773,675.16,674.23,0.29663467]
[1747869092175,0.97114773,675.15,674.23,0.29663467]
[1747869093376,1.10911611,675.1,674.23,0.29663467]
[1747869094276,0.97114773,675.09,674.23,0.29663467]
[1747869096673,1.10911611,675.04,674.23,0.29663467]
[1747869097779,0.97114773,675.03,674.23,0.29663467]
[1747869099680,1.10911611,675.0,674.23,0.29663467]
[1747869100481,0.97114773,674.99,674.23,0.29663467]
[1747869102182,0.97114773,674.98,674.23,0.29663467]
[1747869103379,0.97114773,674.97,674.23,0.29663467]
[1747869104581,0.97114773,674.96,674.23,0.29663467]
[1747869105482,0.97114773,674.95,674.23,0.29663467]
[1747869106982,1.47803422,675.16,674.23,0.29663467]
[1747869106983,1.10911611,674.88,674.23,0.29663467]
[1747869108290,0.97114773,674.87,674.23,0.29663467]
[1747869109390,1.10911611,674.88,674.23,0.29663467]
[1747869111090,0.97114773,674.87,674.23,0.29663467]
[1747869112289,1.10911611,674.89,674.23,0.29663467]
[1747869113590,0.97114773,674.88,674.23,0.29663467]
[1747869115195,1.10911611,674.9,674.23,0.29663467]
[1747869116895,0.97114773,674.89,674.23,0.29663467]
[1747869118492,1.10911611,674.87,674.23,0.29663467]
[1747869119293,0.97114773,674.86,674.23,0.29663467]
[1747869122896,0.97114773,674.89,674.23,0.29663467]
[1747869125399,2.08026384,674.89,674.23,0.29663467]
[1747869126400,0.97114773,674.88,674.23,0.29663467]
[1747869127601,0.97114773,674.89,674.23,0.29663467]
[1747869129100,1.10911611,674.85,674.23,0.29663467]
[1747869130803,0.97114773,674.84,674.23,0.29663467]
[1747869132106,0.97114773,674.83,674.23,0.29663467]
[1747869133106,0.97114773,674.82,674.23,0.29663467]
[1747869134406,0.97114773,674.81,674.23,0.29663467]
[1747869135909,0.97114773,674.8,674.23,0.29663467]
[1747869137908,0.97114773,674.79,674.23,0.29663467]
[1747869139611,0.97114773,674.78,674.23,0.29663467]
[1747869140908,0.97114773,674.77,674.23,0.29663467]
[1747869142614,0.97114773,674.76,674.23,0.29663467]
[1747869143913,0.97114773,674.75,674.23,0.29663467]
[1747869145314,0.97114773,674.74,674.23,0.29663467]
[1747869146715,0.97114773,674.73,674.23,0.29663467]
[1747869147818,0.97114773,674.72,674.23,0.29663467]
[1747869149315,1.10911611,674.69,674.23,0.29663467]
[1747869150812,0.97114773,674.68,674.23,0.29663467]
[1747869152116,0.97114773,674.67,674.23,0.29663467]
[1747869153114,0.97114773,674.66,674.23,0.29663467]
[1747869153319,0.97114773,674.66,674.18,0.25799277]
[1747869154213,0.97114773,674.66,673.59,0.50764269]
[1747869154517,0.97114773,674.66,674.1,0.25806643]
[1747869154718,0.97114773,674.65,674.1,0.25806643]
[1747869154918,0.97114773,674.65,673.58,0.50764269]
[1747869156016,0.97114773,674.65,673.59,0.25811333]
[1747869156216,0.97114773,674.64,673.59,0.25811333]
[1747869157621,0.97114773,674.64,673.58,0.50764269]
[1747869157922,0.97114773,674.64,673.59,0.25808653]
[1747869158222,1.10911611,674.58,673.59,0.25808653]
[1747869158923,0.97114773,674.57,673.59,0.25808653]
[1747869160625,0.97114773,674.56,673.57,0.50764269]
[1747869161325,0.97114773,674.56,673.58,0.25814779]
[1747869161826,0.97114773,674.55,673.58,0.25814779]
[1747869163028,0.97114773,674.54,673.58,0.25814779]
[1747869163628,0.97114773,674.54,673.56,0.50764269]
[1747869164629,0.97114773,674.53,673.56,0.50764269]
[1747869164929,0.97114773,674.53,673.57,0.25815641]
[1747869166231,0.97114773,674.52,673.58,0.50764269]
[1747869167431,0.97114773,674.51,673.58,0.50764269]
[1747869169532,0.97114773,674.5,673.65,0.50764269]
[1747869170830,0.97114773,674.49,673.65,0.50764269]
[1747869172134,0.97114773,674.49,673.67,0.29688126]
[1747869172830,0.97114773,674.48,673.67,0.29688126]
[1747869174234,1.10911611,674.83,673.67,0.29688126]
[1747869175234,0.96222491,678.04,673.76,0.33677532]
[1747869175235,1.10911611,674.87,673.76,0.33677532]
[1747869175535,1.10911611,674.87,673.78,0.29683279]
[1747869177732,1.10911611,674.73,673.86,0.33677532]
[1747869177929,1.10911611,674.73,673.88,0.29678874]
[1747869183342,1.10911611,674.85,673.88,0.29678874]
[1747869186738,1.10911611,674.85,673.95,0.33677532]
[1747869186946,1.10911611,674.82,673.97,0.29674911]
[1747869189242,1.10911611,674.94,673.97,0.29674911]
[1747869192150,1.10911611,674.95,673.97,0.29674911]
[1747869194646,1.10911611,674.97,673.97,0.29674911]
[1747869196950,1.10911611,674.99,673.97,0.29674911]
[1747869200057,1.10911611,674.98,673.97,0.29674911]
[1747869202359,1.10911611,674.93,674.02,0.33677532]
[1747869202657,1.10911611,674.93,674.04,0.29671829]
[1747869204957,1.10911611,675.04,674.04,0.29671829]
[1747869208053,1.10911611,675.11,674.04,0.29671829]
[1747869210354,1.10911611,675.13,674.04,0.29671829]
[1747869212661,1.10911611,675.12,674.04,0.29671829]
[1747869215167,1.10911611,675.18,674.04,0.29671829]
[1747869217769,3.68070765,676.25,674.04,0.29671829]
[1747869217770,1.10911611,675.16,674.04,0.29671829]
[1747869220075,1.10911611,675.12,674.06,0.33677532]
[1747869220367,1.10911611,675.12,674.08,0.29670068]
[1747869225376,1.10911611,675.11,674.16,0.33677532]
[1747869225573,1.10911611,675.11,674.18,0.29665667]
[1747869227876,1.10911611,675.11,674.18,0.63343199]
[1747869230277,1.10911611,675.09,674.18,0.63343199]
[1747869232279,1.10911611,675.05,674.18,0.63343199]
[1747869234880,1.10911611,675.05,674.19,0.33677532]
[1747869235085,1.10911611,675.04,674.21,0.29664347]
[1747869237986,1.10911611,675.44,674.21,0.29664347]
[1747869240785,1.10911611,675.43,674.21,0.29664347]
[1747869245801,1.10911611,675.42,674.21,0.29664347]
[1747869248004,1.10911611,675.27,674.21,0.29664347]
[1747869250107,1.10911611,675.3,674.21,0.29664347]
[1747869255910,1.10911611,675.51,674.42,0.33677532]
[1747869256510,1.10911611,675.51,674.44,0.29654231]
[1747869263615,1.10911611,675.52,674.44,0.29654231]
[1747869266210,1.10911611,675.53,674.44,0.29654231]
[1747869268415,1.10911611,675.51,674.44,0.29654231]
[1747869274123,1.10911611,675.37,674.44,0.29654231]
[1747869277520,1.10911611,675.38,674.44,0.29654231]
[1747869280121,1.47803422,675.55,674.44,0.29654231]
[1747869280326,1.10911611,675.6,674.44,0.29654231]
[1747869282424,1.10911611,675.58,674.44,0.29654231]
[1747869288031,1.10911611,675.67,674.59,0.33677532]
[1747869288230,1.10911611,675.67,674.61,0.29646758]
[1747869291130,1.10911611,675.66,674.61,0.29646758]
[1747869296435,1.10911611,675.67,674.61,0.29646758]
[1747869298838,1.10911611,675.65,674.61,0.29646758]
[1747869301543,1.10911611,675.61,674.61,0.6332429]
[1747869303844,1.10911611,675.59,674.61,0.29646758]
[1747869307147,1.10911611,675.56,674.61,0.29646758]
[1747869309952,1.10911611,675.7,674.61,0.29646758]
[1747869315961,1.10911611,675.68,674.61,0.29646758]
[1747869321065,1.10911611,675.58,674.61,0.29646758]
[1747869323968,1.10911611,675.57,674.61,0.29646758]
[1747869328970,1.10911611,675.56,674.61,0.29646758]
[1747869331675,1.10911611,675.48,674.7,0.33677532]
[1747869331872,1.10911611,675.48,674.71,0.29642364]
[1747869333978,1.10911611,675.46,674.72,0.33677532]
[1747869334180,1.10911611,675.46,674.73,0.29641486]
[1747869336882,1.10911611,675.47,674.73,0.29641486]
[1747869338989,1.10911611,675.42,674.73,0.29641486]
[1747869341487,1.10911611,675.39,674.73,0.29641486]
[1747869344081,1.10911611,675.34,674.73,0.29641486]
[1747869346990,1.47803422,675.54,674.73,0.29641486]
[1747869346991,1.10911611,675.26,674.73,0.29641486]
[1747869349090,1.10911611,675.29,674.73,0.29641486]
[1747869351795,1.10911611,675.33,674.73,0.29641486]
[1747869353897,1.10911611,675.48,674.73,0.29641486]
[1747869356397,1.10911611,675.47,674.73,0.29641486]
[1747869358597,1.10911611,675.45,674.73,0.29641486]
[1747869361601,1.10911611,675.44,674.73,0.29641486]
[1747869364302,1.10911611,675.48,674.73,0.29641486]
[1747869366302,1.10911611,675.48,674.73,0.63319018]
[1747869369202,1.10911611,675.63,674.73,0.63319018]
[1747869371702,1.10911611,675.61,674.73,0.29641486]
[1747869378007,1.10911611,675.63,674.73,0.29641486]
[1747869380707,1.47803422,675.88,674.73,0.29641486]
[1747869380708,1.10911611,675.64,674.73,0.29641486]
[1747869387416,1.10911611,675.44,674.73,0.29641486]
[1747869390419,1.10911611,675.37,674.73,0.29641486]
[1747869393714,1.10911611,675.31,674.73,0.29641486]
[1747869396422,1.10911611,675.29,674.73,0.29641486]
[1747869398628,1.10911611,675.35,674.73,0.29641486]
[1747869403937,1.10911611,675.34,674.73,0.29641486]
[1747869405537,3.68070765,676.33,674.73,0.29641486]
[1747869405538,1.10911611,675.25,674.73,0.29641486]
[1747869407539,1.10911611,675.23,674.73,0.29641486]
[1747869408541,1.10911611,675.26,674.73,0.29641486]
[1747869409642,1.10911611,675.27,674.73,0.29641486]
[1747869411045,1.10911611,675.24,674.73,0.29641486]
[1747869412247,1.10911611,675.25,674.73,0.29641486]
[1747869412945,2.21705134,675.63,674.73,0.29641486]
[1747869413147,0.25789526,676.33,674.73,0.29641486]
[1747869413345,0.29495479,678.07,674.73,0.29641486]
[1747869413544,0.96222491,677.84,674.73,0.29641486]
[1747869413748,0.29512018,677.69,674.73,0.29641486]
[1747869419051,0.25762797,677.68,674.73,0.29641486]
[1747869419252,0.29518552,677.54,674.73,0.29641486]
[1747869420055,1.10311923,675.18,674.73,0.29641486]
[1747869422757,1.10311923,675.21,674.73,0.29641486]
[1747869425457,1.10311923,675.32,674.73,0.29641486]
[1747869427658,1.10311923,675.22,674.73,0.29641486]
[1747869431661,1.10311923,675.28,674.73,0.29641486]
[1747869435061,1.10311923,675.33,674.73,0.29641486]
[1747869441867,1.10311923,675.21,674.73,0.29641486]
[1747869444276,1.10311923,675.1,674.73,0.29641486]
[1747869446676,1.10311923,675.08,674.73,0.29641486]
[1747869449377,1.10311923,675.09,674.73,0.29641486]
[1747869452179,1.10311923,674.91,674.73,0.29641486]
[1747869454675,1.10311923,674.8,674.73,0.29641486]
[1747869457778,1.10311923,674.84,674.73,0.29641486]
[1747869458079,1.10311923,674.84,674.08,0.25801764]
[1747869458279,1.10311923,674.84,674.09,0.29669628]
[1747869460379,1.10311923,674.91,674.09,0.29669628]
[1747869463178,1.10311923,674.94,674.09,0.29669628]
[1747869465986,1.10311923,674.93,674.09,0.29669628]
[1747869468384,1.10311923,674.89,674.09,0.29669628]
[1747869471789,1.10311923,674.92,674.09,0.29669628]
[1747869477996,1.10311923,674.79,674.09,0.29669628]
[1747869481999,1.10311923,674.71,674.09,0.29669628]
[1747869484394,1.10311923,674.92,674.09,0.29669628]
[1747869486999,1.10311923,674.96,674.09,0.29669628]
[1747869489504,1.10311923,674.95,674.09,0.29669628]
[1747869491604,1.10311923,675.03,674.09,0.29669628]
[1747869494904,1.10311923,675.13,674.09,0.63513284]
[1747869497609,1.10311923,675.19,674.34,0.25142076]
[1747869497807,1.10311923,675.19,674.36,0.29657749]
[1747869500509,1.10311923,675.18,674.36,0.29657749]
[1747869503108,1.10311923,675.19,674.36,0.29657749]
[1747869506010,1.10311923,675.24,674.36,0.29657749]
[1747869508510,1.10311923,675.22,674.36,0.29657749]
[1747869510212,1.10311923,675.19,674.36,0.29657749]
[1747869513007,1.10311923,675.23,674.36,0.29657749]
[1747869515915,1.10311923,675.28,674.36,0.29657749]
[1747869517711,1.10311923,675.26,674.36,0.29657749]
[1747869520612,1.10311923,675.25,674.36,0.29657749]
[1747869522722,1.10311923,675.24,674.36,0.29657749]
[1747869525622,1.10311923,675.13,674.36,0.29657749]
[1747869527925,1.10311923,675.32,674.36,0.29657749]
[1747869531025,1.10311923,675.34,674.36,0.29657749]
[1747869536929,1.10311923,675.33,674.36,0.29657749]
[1747869539932,1.10311923,675.19,674.36,0.29657749]
[1747869542441,1.10311923,675.15,674.36,0.29657749]
[1747869545236,0.25787424,676.45,674.43,0.25172726]
[1747869545237,1.10311923,675.17,674.43,0.25172726]
[1747869545430,1.10311923,675.17,674.44,0.29654231]
[1747869547838,1.10311923,675.16,674.44,0.54826957]
[1747869550841,1.10311923,675.14,674.5,0.25172726]
[1747869551140,1.10311923,675.14,674.51,0.29651154]
[1747869554336,1.10311923,675.49,674.53,0.25172726]
[1747869554541,1.10311923,675.49,674.54,0.29649835]
[1747869557240,1.10311923,675.41,674.64,0.25172726]
[1747869557441,1.10311923,675.41,674.65,0.29645001]
[1747869560948,1.10311923,675.13,674.65,0.29645001]
[1747869563051,1.10311923,675.24,674.65,0.29645001]
[1747869565454,1.10311923,675.2,674.65,0.29645001]
[1747869568151,1.10311923,675.07,674.65,0.29645001]
[1747869570557,1.10311923,675.61,674.65,0.29645001]
[1747869573561,1.10311923,675.81,674.65,0.29645001]
[1747869576263,1.10311923,675.71,674.65,0.29645001]
[1747869578068,1.10311923,675.62,674.68,0.25163416]
[1747869578262,1.10311923,675.62,674.69,0.29643243]
[1747869580567,1.10311923,675.53,674.69,0.29643243]
[1747869582874,1.10311923,675.62,674.69,0.29643243]
[1747869585476,1.10311923,675.63,674.69,0.29643243]
[1747869590981,1.10311923,675.64,674.69,0.29643243]
[1747869592579,1.10311923,675.61,674.69,0.29643243]
[1747869597686,1.10311923,675.57,674.69,0.29643243]
[1747869602783,1.10311923,675.52,674.69,0.29643243]
[1747869606293,1.10311923,675.42,674.69,0.29643243]
[1747869609197,1.10311923,675.41,674.69,0.29643243]
[1747869612298,1.10311923,675.38,674.69,0.29643243]
[1747869615304,1.10311923,675.36,674.69,0.29643243]
[1747869617807,1.10311923,675.4,674.69,0.29643243]
[1747869624007,1.10311923,675.39,674.69,0.29643243]
[1747869629215,1.10311923,675.35,674.74,0.25163416]
[1747869629413,1.10311923,675.35,674.75,0.29640607]
[1747869631612,1.10311923,675.35,674.76,0.25163416]
[1747869631817,1.10311923,675.53,674.76,0.25163416]
[1747869632115,1.10311923,675.53,674.77,0.29639729]
[1747869634213,1.10311923,675.5,674.8,0.25163416]
[1747869634417,1.10311923,675.5,674.81,0.29637972]
[1747869636616,1.10311923,675.49,674.81,0.29637972]
[1747869639618,1.10311923,675.57,674.86,0.25163416]
[1747869639818,1.10311923,675.57,674.87,0.29635337]
[1747869642920,1.10311923,675.58,674.87,0.29635337]
[1747869644923,1.10311923,675.58,674.86,0.25163416]
[1747869646621,3.67706412,676.59,674.85,0.25163416]
[1747869646622,1.10311923,675.65,674.85,0.25163416]
[1747869649731,1.10311923,675.64,674.8,0.2576957]
[1747869654427,1.10311923,675.65,674.8,0.2576957]
[1747869656935,1.10311923,675.56,674.8,0.2576957]
[1747869658937,1.10311923,675.56,674.7,0.25163416]
[1747869659137,1.10311923,675.65,674.79,0.25163416]
[1747869659333,1.10311923,675.65,674.8,0.25773673]
[1747869659538,1.10311923,675.65,674.79,0.25163416]
[1747869660242,1.10311923,675.65,674.8,0.25771955]
[1747869661844,1.10311923,675.65,674.79,0.25163416]
[1747869662039,1.10311923,675.64,674.79,0.25163416]
[1747869662245,1.10311923,675.64,674.8,0.25772337]
[1747869666751,1.10311923,675.63,674.8,0.50935753]
[1747869667955,1.10311923,675.63,674.8,0.25163416]
[1747869668253,1.10311923,675.63,674.8,0.5093623]
[1747869668855,1.10311923,675.59,674.82,0.25163416]
[1747869670757,1.10311923,675.59,674.83,0.29637093]
[1747869672355,3.67706412,676.63,674.83,0.54800509]
[1747869672356,1.10311923,675.6,674.83,0.54800509]
[1747869674356,1.10311923,675.66,674.87,0.25163416]
[1747869674557,1.10311923,675.66,674.88,0.29634898]
[1747869677459,1.10311923,675.7,674.88,0.54798314]
[1747869680162,1.10311923,675.71,674.91,0.25163416]
[1747869680360,1.10311923,675.71,674.92,0.29633141]
[1747869683158,1.10311923,675.71,674.92,0.54796557]
[1747869685364,1.10311923,675.61,674.92,0.29633141]
[1747869688662,1.10311923,675.57,674.92,0.54796557]
[1747869691268,1.10311923,675.54,674.94,0.25163416]
[1747869691469,1.10311923,675.54,674.95,0.29631824]
[1747869693867,1.10311923,675.51,674.96,0.25163416]
[1747869694068,1.10311923,675.51,674.97,0.29630946]
[1747869697371,1.10311923,675.5,674.97,0.29630946]
[1747869697571,1.10311923,675.5,674.98,0.25163416]
[1747869697773,1.10311923,675.5,674.99,0.29630068]
[1747869699575,1.10311923,675.47,675.0,0.25163416]
[1747869699975,1.10311923,675.47,675.01,0.2962919]
[1747869702276,1.10311923,675.46,675.02,0.25163416]
[1747869702576,1.10311923,675.46,675.03,0.29628312]
[1747869705474,1.10311923,675.47,675.03,0.29628312]
[1747869707782,1.10311923,675.53,675.03,0.29628312]
[1747869710185,1.47082565,675.66,675.03,0.29628312]
[1747869710186,1.10311923,675.56,675.03,0.29628312]
[1747869712689,1.10311923,675.63,675.03,0.29628312]
[1747869715285,1.10311923,675.65,675.03,0.29628312]
[1747869720201,1.10311923,675.66,675.03,0.29628312]
[1747869722800,1.10311923,675.68,675.03,0.29628312]
[1747869725099,1.10311923,675.64,675.03,0.29628312]
[1747869728908,1.10311923,675.69,675.03,0.29628312]
[1747869732008,1.10311923,675.67,675.03,0.29628312]
[1747869737808,1.10311923,675.63,675.03,0.29628312]
[1747869740212,1.10311923,675.62,675.03,0.29628312]
[1747869743116,1.10311923,675.63,675.03,0.29628312]
[1747869745817,1.10311923,675.68,675.03,0.29628312]
[1747869748219,1.10311923,675.67,675.03,0.29628312]
[1747869751021,1.10311923,675.66,675.03,0.29628312]
[1747869753617,1.10311923,675.67,675.03,0.29628312]
[1747869755916,1.10311923,675.73,675.03,0.29628312]
[1747869759926,1.10311923,675.69,675.03,0.29628312]
[1747869762929,1.10311923,675.53,675.03,0.29628312]
[1747869765133,1.10311923,675.51,675.03,0.29628312]
[1747869768144,1.10311923,675.53,675.03,0.29628312]
[1747869771342,3.67706412,676.47,675.03,0.29628312]
[1747869771343,1.10311923,675.51,675.03,0.29628312]
[1747869774244,1.10311923,675.53,675.03,0.29628312]
[1747869777046,1.10311923,675.51,675.03,0.29628312]
[1747869779349,1.10311923,675.52,675.03,0.29628312]
[1747869783053,1.10311923,675.51,675.03,0.29628312]
[1747869785357,1.10311923,675.49,675.03,0.29628312]
[1747869787555,1.10311923,675.51,675.03,0.29628312]
[1747869789858,1.10311923,675.53,675.03,0.29628312]
[1747869792863,1.10311923,675.55,675.03,0.29628312]
[1747869795262,1.10311923,675.57,675.03,0.29628312]
[1747869797467,1.10311923,675.6,675.03,0.29628312]
[1747869799971,1.10311923,675.81,675.03,0.29628312]
[1747869802476,1.10311923,675.8,675.03,0.29628312]
[1747869805282,1.10311923,675.7,675.03,0.29628312]
[1747869807784,1.10311923,675.69,675.03,0.29628312]
[1747869809687,1.10311923,675.72,675.03,0.29628312]
[1747869812290,1.10311923,675.75,675.03,0.29628312]
[1747869814790,1.10311923,675.77,675.03,0.29628312]
[1747869820596,1.10311923,675.73,675.03,0.29628312]
[1747869822695,1.10311923,675.74,675.03,0.29628312]
[1747869825097,1.10311923,675.7,675.03,0.29628312]
[1747869827804,1.10311923,675.7,675.02,0.25762797]
[1747869830006,1.10311923,675.7,674.94,0.25106464]
[1747869830206,1.10311923,675.56,675.02,0.25106464]
[1747869830413,1.10311923,675.56,675.02,0.50872695]
[1747869830605,1.10311923,675.56,675.02,0.25106464]
[1747869831310,1.10311923,675.56,675.02,0.50872599]
[1747869832009,1.47082565,675.71,675.02,0.25766135]
[1747869832309,1.10899194,675.55,675.03,0.25100768]
[1747869834712,1.10899194,675.64,675.02,0.25765849]
[1747869836015,1.10899194,675.64,675.0,0.25100768]
[1747869837310,1.10899194,675.64,675.01,0.25765563]
[1747869838415,1.10899194,675.66,675.01,0.25765563]
[1747869839017,1.10899194,675.66,675.0,0.25100768]
[1747869840315,1.10899194,675.66,675.01,0.25754408]
[1747869842016,1.10899194,675.66,675.0,0.25100768]
[1747869842421,1.10899194,676.45,675.5,0.50795931]
[1747869844922,1.10899194,676.61,675.41,0.24822748]
[1747869847123,1.10899194,676.61,675.2,0.33117134]
[1747869847124,1.10899194,676.65,675.49,0.24822748]
[1747869849522,1.10899194,676.71,675.4,0.24822748]
[1747869850328,1.10899194,676.71,675.42,0.29611204]
[1747869852429,1.10899194,676.75,675.42,0.29611204]
[1747869855243,1.47082565,676.92,675.42,0.29611204]
[1747869855427,0.95936971,679.91,675.42,0.29611204]
[1747869855632,0.25741549,677.55,675.42,0.29611204]
[1747869855832,0.95936971,679.91,675.42,0.29611204]
[1747869856227,0.29329383,681.91,675.42,0.29611204]
[1747869857535,1.09361276,676.56,675.42,0.29611204]
[1747869860141,1.09361276,676.69,675.42,0.29611204]
[1747869862639,1.09361276,676.74,675.42,0.29611204]
[1747869868838,1.09361276,676.77,675.42,0.29611204]
[1747869871143,1.09361276,676.79,675.42,0.29611204]
[1747869876345,1.09361276,676.75,675.42,0.29611204]
[1747869879756,1.09361276,676.89,675.42,0.29611204]
[1747869882253,1.09361276,676.92,675.42,0.29611204]
[1747869885158,3.64537588,678.03,675.42,0.29611204]
[1747869885159,1.09361276,676.96,675.42,0.29611204]
[1747869890462,1.09361276,677.25,675.64,0.24715129]
[1747869893365,1.09361276,677.26,675.81,0.24715129]
[1747869894666,1.09361276,677.26,675.83,0.2959324]
[1747869895768,1.09361276,677.2,675.9,0.24715129]
[1747869895970,1.09361276,677.2,675.92,0.295893]
[1747869898271,1.09361276,677.22,676.04,0.24715129]
[1747869901474,1.09361276,677.25,676.09,0.24715129]
[1747869904074,1.09361276,677.25,676.11,0.29580985]
[1747869904274,2.18722553,677.59,676.11,0.29580985]
[1747869904275,1.09361276,677.35,676.12,0.24715129]
[1747869904470,1.09361276,677.35,676.14,0.29579672]
[1747869906978,1.09361276,677.3,676.14,0.29579672]
[1747869909682,1.09361276,677.34,676.14,0.29579672]
[1747869912482,1.09361276,677.32,676.14,0.29579672]
[1747869915084,3.64537588,678.36,676.14,0.29579672]
[1747869915085,1.09361276,677.14,676.14,0.29579672]
[1747869918991,1.09361276,676.98,676.14,0.29579672]
[1747869921791,1.09361276,677.19,676.14,0.29579672]
[1747869924590,1.09361276,677.33,676.14,0.29579672]
[1747869927797,1.09361276,677.62,676.26,0.24715129]
[1747869927999,1.09361276,677.62,676.28,0.29573549]
[1747869929998,1.09361276,677.72,676.36,0.24715129]
[1747869930193,1.09361276,677.72,676.38,0.29569177]
[1747869932295,1.09361276,677.7,676.4,0.24715129]
[1747869932500,1.09361276,677.7,676.42,0.29567428]
[1747869935602,1.09361276,677.7,676.42,0.54282557]
[1747869938404,1.09361276,677.75,676.5,0.24715129]
[1747869942208,1.09361276,677.79,676.49,0.24715129]
[1747869944811,1.09361276,677.52,676.42,0.29567428]
[1747869947312,1.09361276,677.52,676.45,0.24715129]
[1747869949919,1.09361276,677.5,676.52,0.24715129]
[1747869953019,1.09361276,677.41,676.35,0.24715129]
[1747869955922,1.09361276,677.54,676.29,0.24715129]
[1747869958324,1.09361276,677.52,676.32,0.24715129]
[1747869961425,1.09361276,677.62,676.57,0.24715129]
[1747869964626,1.09361276,677.68,676.62,0.24715129]
[1747869966524,1.09361276,677.77,676.61,0.24715129]
[1747869969333,1.09361276,677.78,676.65,0.24715129]
[1747869971729,1.09361276,677.78,676.67,0.29556504]
[1747869972434,1.09361276,677.94,676.67,0.29556504]
[1747869975934,1.09361276,677.94,676.76,0.24715129]
[1747869976134,1.09361276,677.94,676.78,0.295517]
[1747869978635,3.64537588,678.89,676.78,0.295517]
[1747869978636,1.09361276,677.96,676.78,0.295517]
[1747869981337,1.09361276,677.93,676.84,0.24715129]
[1747869981537,1.09361276,677.93,676.86,0.29548207]
[1747869983741,3.64537588,678.89,676.86,0.29548207]
[1747869983742,1.09361276,677.89,676.9,0.24715129]
[1747869983940,1.09361276,677.89,676.92,0.29545588]
[1747869986644,1.09361276,677.91,676.92,0.29545588]
[1747869988939,1.09361276,677.81,676.92,0.29545588]
[1747869992146,1.45815035,677.95,676.92,0.29545588]
[1747869992147,1.09361276,678.08,676.92,0.54260717]
[1747869994948,1.09361276,677.95,676.92,0.29545588]
[1747869997652,1.09361276,677.79,676.92,0.29545588]
[1747870000448,1.09361276,677.86,676.92,0.29545588]
[1747870002649,1.09361276,677.9,676.92,0.29545588]
[1747870005656,1.09361276,677.91,676.92,0.29545588]
[1747870008352,1.09361276,677.91,676.98,0.24715129]
[1747870008549,1.09361276,677.94,676.99,0.29542533]
[1747870011759,1.09361276,678.17,677.02,0.24715129]
[1747870011959,1.09361276,678.17,677.04,0.29540352]
[1747870014061,1.09361276,678.15,677.04,0.29540352]